bitfinex/quotes_BTCUSD_20250812
["timestamp","ask_amount","ask_price","bid_price","bid_amount"]
[1755025563272,8.184e-05,119460.0,119450.0,1.14723349]
[1755025579859,8.184e-05,119460.0,119450.0,0.58266725]
[1755025580101,8.184e-05,119460.0,119450.0,1.14723349]
[1755025586422,0.00217184,119460.0,119450.0,1.01679349]
[1755025586634,0.00513184,119460.0,119450.0,1.14225349]
[1755025587268,0.00217184,119460.0,119450.0,1.14440349]
[1755025587471,8.184e-05,119460.0,119450.0,1.14754349]
[1755025589195,0.00217184,119460.0,119450.0,1.14440349]
[1755025590057,8.184e-05,119460.0,119450.0,1.14735349]
[1755025591714,0.00216184,119460.0,119450.0,1.14735349]
[1755025593583,8.184e-05,119460.0,119450.0,1.14735349]
[1755025594523,0.00534184,119460.0,119450.0,1.14440349]
[1755025594648,0.00534184,119460.0,119450.0,1.14225349]
[1755025596264,8.184e-05,119460.0,119450.0,1.14729349]
[1755025599097,8.184e-05,119460.0,119450.0,1.19729349]
[1755025601848,8.184e-05,119460.0,119450.0,1.26490389]
[1755025603336,8.184e-05,119460.0,119450.0,1.19729349]
[1755025606923,0.00216184,119460.0,119450.0,1.19430349]
[1755025611023,0.00216184,119460.0,119450.0,1.19725349]
[1755025611787,8.184e-05,119460.0,119450.0,1.19725349]
[1755025615682,8.184e-05,119460.0,119450.0,1.19825349]
[1755025617767,8.184e-05,119460.0,119450.0,1.19530349]
[1755025618174,8.184e-05,119460.0,119450.0,1.19825349]
[1755025623099,8.184e-05,119460.0,119450.0,1.59825349]
[1755025623339,8.65e-06,119460.0,119450.0,1.59825349]
[1755025626652,8.65e-06,119460.0,119450.0,2.15825349]
[1755025627244,8.65e-06,119460.0,119450.0,3.65518449]
[1755025627420,8.65e-06,119460.0,119450.0,4.21975073]
[1755025627616,8.65e-06,119460.0,119450.0,2.28193649]
[1755025627842,8.65e-06,119460.0,119450.0,2.25976149]
[1755025628057,8.65e-06,119460.0,119450.0,2.26157849]
[1755025628687,0.00100865,119460.0,119450.0,2.26557849]
[1755025628896,0.00100865,119460.0,119450.0,2.16121349]
[1755025629324,0.00100865,119460.0,119450.0,2.16321349]
[1755025630429,0.00100865,119460.0,119450.0,2.28241149]
[1755025630715,0.00100865,119460.0,119450.0,2.16321349]
[1755025631376,0.00100865,119460.0,119450.0,2.28241149]
[1755025632105,0.0004,119480.0,119470.0,0.36740604]
[1755025632276,0.00239,119480.0,119470.0,1.14205553]
[1755025633032,0.00239,119480.0,119470.0,1.16717153]
[1755025633229,0.00239,119480.0,119470.0,0.75708828]
[1755025633475,0.00239,119480.0,119470.0,0.88444828]
[1755025633815,0.02556,119480.0,119470.0,0.31988204]
[1755025634128,0.02556,119480.0,119470.0,0.88444828]
[1755025634129,0.02817,119480.0,119470.0,0.88444828]
[1755025634342,0.19707682,119480.0,119470.0,0.13605792]
[1755025634528,0.16740604,119470.0,119460.0,0.02846269]
[1755025634730,0.17091083,119470.0,119460.0,0.15582269]
[1755025634940,0.19517604,119470.0,119460.0,0.15582269]
[1755025637285,0.19517604,119470.0,119460.0,0.32324274]
[1755025637556,0.19517604,119470.0,119460.0,0.15582269]
[1755025637843,0.19517604,119470.0,119460.0,0.16429455]
[1755025638157,0.19517604,119470.0,119460.0,0.3317146]
[1755025638486,0.19517604,119470.0,119460.0,0.16429455]
[1755025639478,0.19517604,119470.0,119460.0,0.3317146]
[1755025639821,0.02777,119470.0,119460.0,0.3317146]
[1755025640029,0.02928479,119470.0,119460.0,0.89628084]
[1755025640202,0.19669083,119470.0,119460.0,0.89628084]
[1755025640457,0.19517604,119470.0,119460.0,0.89628084]
[1755025642309,0.17200604,119470.0,119460.0,0.89628084]
[1755025643170,0.17200604,119470.0,119460.0,0.3317146]
[1755025643394,0.17200604,119470.0,119460.0,0.89628084]
[1755025644866,0.18945506,119470.0,119460.0,0.02846269]
[1755025645140,0.30615812,119470.0,119460.0,0.15582269]
[1755025645404,0.29081678,119460.0,119450.0,0.15317477]
[1755025645884,0.29541678,119460.0,119450.0,0.15317477]
[1755025646086,0.29541678,119460.0,119450.0,0.71774101]
[1755025646417,0.29541678,119460.0,119450.0,0.84510101]
[1755025648251,0.29280678,119460.0,119450.0,0.84510101]
[1755025648420,0.29541678,119460.0,119450.0,0.84510101]
[1755025648624,0.12799673,119460.0,119450.0,0.85372479]
[1755025648829,0.12538673,119460.0,119450.0,0.85372479]
[1755025649040,0.12538673,119460.0,119450.0,0.85584479]
[1755025649241,0.12491152,119460.0,119450.0,0.85887479]
[1755025649427,0.12548673,119460.0,119450.0,0.85372479]
[1755025649624,0.12700152,119460.0,119450.0,0.85372479]
[1755025650043,0.12700152,119460.0,119450.0,0.85377479]
[1755025650297,0.12700152,119460.0,119450.0,0.85584479]
[1755025651184,0.00360479,119460.0,119450.0,0.85584479]
[1755025652133,0.02479427,119460.0,119450.0,0.85584479]
[1755025652758,0.02479427,119460.0,119450.0,0.85887479]
[1755025654184,0.19221432,119460.0,119450.0,0.85887479]
[1755025654294,0.19069953,119460.0,119450.0,0.85887479]
[1755025654520,0.19069953,119460.0,119450.0,0.85584479]
[1755025656833,0.19069953,119460.0,119450.0,0.85887479]
[1755025663311,0.19069953,119460.0,119450.0,0.85882479]
[1755025667159,0.16951005,119460.0,119450.0,0.87308409]
[1755025667370,0.16951005,119460.0,119450.0,0.13805378]
[1755025667589,0.17259005,119460.0,119450.0,0.13598378]
[1755025667797,0.16744809,119440.0,119430.0,0.00303]
[1755025668010,0.17105288,119440.0,119430.0,0.02727984]
[1755025668216,0.17261809,119440.0,119430.0,0.30340237]
[1755025668399,0.16953809,119440.0,119430.0,0.29486395]
[1755025668576,0.17105288,119440.0,119430.0,0.29693395]
[1755025668787,0.17105288,119440.0,119430.0,0.29996395]
[1755025669172,0.17105288,119440.0,119430.0,0.21343037]
[1755025669375,0.16953809,119440.0,119430.0,0.21343037]
[1755025669592,0.16953809,119440.0,119430.0,0.21543037]
[1755025670081,0.16953809,119440.0,119430.0,0.19424094]
[1755025670482,0.16953809,119440.0,119430.0,0.75880718]
[1755025670896,0.16953809,119440.0,119430.0,0.69898624]
[1755025671285,0.16953809,119440.0,119430.0,0.13989619]
[1755025671913,0.16953809,119440.0,119430.0,0.3103883]
[1755025672350,0.16953809,119440.0,119430.0,0.87295454]
[1755025672717,0.16744809,119440.0,119430.0,0.87295454]
[1755025673091,0.16896288,119440.0,119430.0,0.87295454]
[1755025677468,0.16896288,119440.0,119430.0,0.70549243]
[1755025678088,0.17051288,119440.0,119430.0,0.70549243]
[1755025678292,0.16899809,119440.0,119430.0,0.70549243]
[1755025678662,0.16899809,119440.0,119430.0,0.87295454]
[1755025679538,0.16744809,119440.0,119430.0,0.87295454]
[1755025679787,0.16896288,119440.0,119430.0,0.87295454]
[1755025680577,0.16896288,119440.0,119430.0,0.70549243]
[1755025680795,0.16896288,119440.0,119430.0,0.3759987]
[1755025681023,0.00151479,119440.0,119430.0,0.94056494]
[1755025681242,0.08272325,119460.0,119450.0,0.16743407]
[1755025681461,0.16742005,119460.0,119450.0,0.86138031]
[1755025681658,0.16740846,119470.0,119450.0,0.86444031]
[1755025681867,0.18637227,119470.0,119460.0,0.56762624]
[1755025682096,0.18485748,119470.0,119460.0,0.56964624]
[1755025682302,0.18701748,119470.0,119460.0,0.56964624]
[1755025682728,0.22615799,119470.0,119460.0,0.73706629]
[1755025682933,0.18801748,119470.0,119460.0,0.73706629]
[1755025683081,0.18585748,119470.0,119460.0,0.73706629]
[1755025683488,0.18885748,119470.0,119460.0,0.73706629]
[1755025683688,0.19101748,119470.0,119460.0,0.56964624]
[1755025683965,0.19101748,119470.0,119460.0,0.00508]
[1755025684208,0.16742005,119460.0,119450.0,0.29479407]
[1755025684422,0.17109484,119460.0,119450.0,0.12736]
[1755025684675,0.17268005,119460.0,119450.0,0.12736]
[1755025685748,0.17368005,119460.0,119450.0,0.12736]
[1755025686668,0.17468005,119460.0,119450.0,0.12736]
[1755025686892,0.21458785,119460.0,119450.0,0.12736]
[1755025688013,0.16743407,119450.0,119430.0,0.86560881]
[1755025688239,0.17112288,119440.0,119430.0,0.20830517]
[1755025688500,0.17112288,119440.0,119430.0,0.33494517]
[1755025688501,0.16960809,119440.0,119430.0,0.33494517]
[1755025688746,0.16960809,119440.0,119430.0,0.33800517]
[1755025689391,0.16960809,119440.0,119430.0,0.90257141]
[1755025689815,0.16960809,119440.0,119430.0,0.90457141]
[1755025690691,0.16744809,119440.0,119430.0,0.90457141]
[1755025690912,0.16896288,119440.0,119430.0,0.90457141]
[1755025692343,0.17042288,119440.0,119430.0,0.90457141]
[1755025692562,0.16890809,119440.0,119430.0,0.90457141]
[1755025693597,0.16890809,119440.0,119430.0,0.34000517]
[1755025693832,0.16890809,119440.0,119430.0,0.90457141]
[1755025693992,0.16744809,119440.0,119430.0,0.90457141]
[1755025694218,0.16896288,119440.0,119430.0,0.90457141]
[1755025696191,0.16896288,119440.0,119430.0,0.34000517]
[1755025696394,0.16896288,119440.0,119430.0,0.90457141]
[1755025696692,0.16896288,119440.0,119430.0,0.34000517]
[1755025696885,0.16896288,119440.0,119430.0,0.90457141]
[1755025699611,0.16896288,119440.0,119430.0,0.34000517]
[1755025699840,0.16896288,119440.0,119430.0,0.90457141]
[1755025700465,0.00151479,119440.0,119430.0,0.90457141]
[1755025701094,0.16896288,119440.0,119430.0,0.90457141]
[1755025701442,0.20476258,119440.0,119430.0,0.01252619]
[1755025701656,0.77091403,119440.0,119430.0,0.12952]
[1755025701866,0.22379681,119440.0,119430.0,0.12952]
[1755025702318,0.22069681,119440.0,119430.0,0.12952]
[1755025702538,0.22069681,119440.0,119430.0,0.12752]
[1755025702758,0.22379681,119440.0,119430.0,0.12752]
[1755025703411,0.22379681,119440.0,119430.0,0.13627772]
[1755025704331,0.22379681,119440.0,119430.0,0.12752]
[1755025706764,0.78836305,119440.0,119430.0,0.12752]
[1755025706982,0.16746211,119430.0,119420.0,0.00854881]
[1755025707190,0.25672133,119430.0,119420.0,0.13707786]
[1755025707427,0.25520654,119430.0,119420.0,0.12852905]
[1755025708799,0.25210654,119430.0,119420.0,0.12852905]
[1755025709226,0.16962211,119430.0,119420.0,0.12852905]
[1755025709472,0.16962211,119430.0,119420.0,0.13365905]
[1755025709812,0.16962211,119430.0,119420.0,0.30962804]
[1755025710475,0.16962211,119430.0,119420.0,0.14215191]
[1755025712396,0.16962211,119430.0,119420.0,0.30962804]
[1755025712610,0.16746211,119430.0,119420.0,0.30962804]
[1755025712829,0.1689769,119430.0,119420.0,0.30962804]
[1755025713250,0.1710369,119430.0,119420.0,0.30962804]
[1755025713467,0.16952211,119430.0,119420.0,0.14215191]
[1755025713792,0.21691033,119430.0,119420.0,0.13918191]
[1755025714844,0.16952211,119430.0,119420.0,0.30665804]
[1755025715023,0.16746211,119430.0,119420.0,0.30962804]
[1755025715260,0.1689769,119430.0,119420.0,0.30962804]
[1755025715943,0.1689769,119430.0,119420.0,0.87419428]
[1755025718193,0.00151479,119430.0,119420.0,0.87419428]
[1755025718898,0.1689769,119430.0,119420.0,0.87419428]
[1755025719916,0.1704369,119430.0,119420.0,0.87419428]
[1755025720120,0.16892211,119430.0,119420.0,0.87419428]
[1755025720521,0.16746211,119430.0,119420.0,0.87419428]
[1755025720756,0.1689769,119430.0,119420.0,0.87419428]
[1755025721070,0.1704569,119430.0,119420.0,0.87419428]
[1755025721273,0.16894211,119430.0,119420.0,0.30962804]
[1755025722200,0.16894211,119430.0,119420.0,0.87419428]
[1755025722777,0.16746211,119430.0,119420.0,0.87419428]
[1755025723007,0.1689769,119430.0,119420.0,0.87419428]
[1755025723422,0.01744902,119440.0,119430.0,0.16746211]
[1755025723640,0.18641394,119440.0,119430.0,0.73418835]
[1755025723860,0.18489915,119440.0,119430.0,0.73715835]
[1755025724076,0.18489915,119440.0,119430.0,0.17259211]
[1755025724280,0.18489915,119440.0,119430.0,0.73715835]
[1755025724717,0.18589915,119440.0,119430.0,0.73715835]
[1755025725363,0.18795915,119440.0,119430.0,0.73715835]
[1755025725564,0.18895915,119440.0,119430.0,0.17259211]
[1755025725774,0.18895915,119440.0,119430.0,0.73715835]
[1755025726084,0.18895915,119440.0,119430.0,0.00513]
[1755025726287,0.22574664,119440.0,119420.0,0.87203428]
[1755025726492,0.22574664,119440.0,119430.0,0.16746211]
[1755025726698,0.18895915,119440.0,119430.0,0.17259211]
[1755025726843,0.18689915,119440.0,119430.0,0.73715835]
[1755025727272,0.18589915,119440.0,119430.0,0.73715835]
[1755025727473,0.18795915,119440.0,119430.0,0.73715835]
[1755025727888,0.18795915,119440.0,119430.0,0.16962211]
[1755025728310,0.22464664,119440.0,119430.0,0.16962211]
[1755025729339,0.22464664,119440.0,119430.0,0.00216]
[1755025729540,0.16746211,119430.0,119420.0,0.01195191]
[1755025729739,0.73719835,119430.0,119420.0,0.12820905]
[1755025729971,0.17263211,119430.0,119420.0,0.12820905]
[1755025730212,0.25511654,119430.0,119420.0,0.12820905]
[1755025730618,0.25200654,119430.0,119420.0,0.12820905]
[1755025730858,0.27256556,119430.0,119420.0,0.12820905]
[1755025733276,0.26945556,119430.0,119420.0,0.12820905]
[1755025734357,0.26945556,119430.0,119420.0,0.13036905]
[1755025734977,0.18697113,119430.0,119420.0,0.13333905]
[1755025735191,0.18697113,119430.0,119420.0,0.86538142]
[1755025735192,0.18491113,119430.0,119420.0,0.86538142]
[1755025738323,0.16745013,119440.0,119420.0,0.86538142]
[1755025738546,0.00151479,119430.0,119420.0,0.29784518]
[1755025739229,0.00151479,119430.0,119420.0,0.30094518]
[1755025739854,0.00151479,119430.0,119420.0,0.86551142]
[1755025741634,0.00151479,119440.0,119430.0,0.16746211]
[1755025741836,0.17577876,119470.0,119460.0,0.16742005]
[1755025741837,0.16740604,119470.0,119460.0,0.16742005]
[1755025742051,0.17616163,119480.0,119460.0,0.85974629]
[1755025742254,0.29649465,119480.0,119470.0,0.56456624]
[1755025742467,0.31606367,119480.0,119470.0,0.00524]
[1755025742674,0.29861465,119480.0,119470.0,0.00214]
[1755025743111,0.31606367,119480.0,119470.0,0.00214]
[1755025743520,0.16740604,119470.0,119460.0,0.86284629]
[1755025743730,0.16892083,119470.0,119460.0,0.86498629]
[1755025743939,0.16892083,119470.0,119460.0,0.69756624]
[1755025744152,0.16892083,119470.0,119460.0,0.133]
[1755025744348,0.21598338,119470.0,119460.0,0.86498629]
[1755025744581,0.21446859,119470.0,119460.0,0.69756624]
[1755025745071,0.16740604,119470.0,119460.0,0.69756624]
[1755025745272,0.17104083,119470.0,119460.0,0.69756624]
[1755025745421,0.19018506,119470.0,119460.0,0.12776]
[1755025747678,0.19118506,119470.0,119460.0,0.12776]
[1755025748123,0.19218506,119470.0,119460.0,0.12776]
[1755025748322,0.27466949,119470.0,119460.0,0.12776]
[1755025750230,0.27145949,119470.0,119460.0,0.12776]
[1755025752625,0.18897506,119470.0,119460.0,0.1299]
[1755025752859,0.18897506,119470.0,119460.0,0.14167444]
[1755025755696,0.18897506,119470.0,119460.0,0.133]
[1755025755917,0.18897506,119470.0,119460.0,0.1299]
[1755025756133,0.18897506,119470.0,119460.0,0.12776]
[1755025756361,0.23784303,119470.0,119460.0,0.12776]
[1755025757449,0.23784303,119470.0,119460.0,0.1299]
[1755025757658,0.23784303,119470.0,119460.0,0.30042005]
[1755025758138,0.23784303,119470.0,119460.0,0.14154488]
[1755025758920,0.23784303,119470.0,119460.0,0.133]
[1755025759139,0.23784303,119470.0,119460.0,0.1299]
[1755025760290,0.23784303,119470.0,119460.0,0.86498629]
[1755025760520,0.06831699,119470.0,119460.0,0.86498629]
[1755025760765,0.18836985,119470.0,119460.0,0.86498629]
[1755025760995,0.01944902,119470.0,119460.0,0.87363041]
[1755025761200,0.02096381,119470.0,119460.0,0.87363041]
[1755025762613,0.002,119470.0,119460.0,0.87363041]
[1755025763304,0.002,119470.0,119460.0,0.74319041]
[1755025763519,0.002,119470.0,119460.0,0.74533041]
[1755025764437,0.002,119470.0,119460.0,0.18076417]
[1755025764649,0.002,119470.0,119460.0,0.87277041]
[1755025765845,0.00204886,119470.0,119460.0,0.87277041]
[1755025768520,0.00204886,119470.0,119460.0,0.30820417]
[1755025768657,0.00204886,119470.0,119460.0,0.74223041]
[1755025768849,0.00204886,119470.0,119460.0,0.86963041]
[1755025769057,0.00204886,119470.0,119460.0,0.87273041]
[1755025771590,0.00204886,119470.0,119460.0,0.30816417]
[1755025771808,0.00405886,119470.0,119460.0,0.86749041]
[1755025772032,0.00405886,119470.0,119460.0,0.86954041]
[1755025772244,0.00204886,119470.0,119460.0,0.87276041]
[1755025775496,0.00104886,119470.0,119460.0,0.87276041]
[1755025776350,4.886e-05,119470.0,119460.0,0.87276041]
[1755025778933,4.886e-05,119470.0,119460.0,0.30819417]
[1755025779130,4.886e-05,119470.0,119460.0,0.87276041]
[1755025780014,0.00205886,119470.0,119460.0,0.86954041]
[1755025780426,0.00527886,119470.0,119460.0,0.86749041]
[1755025780627,0.00205886,119470.0,119460.0,0.86954041]
[1755025780840,4.886e-05,119470.0,119460.0,0.87276041]
[1755025783771,0.17419969,119470.0,119460.0,0.30366417]
[1755025783966,0.25516933,119470.0,119460.0,0.30571417]
[1755025784085,0.1726849,119470.0,119460.0,0.30571417]
[1755025784475,0.1726849,119470.0,119460.0,0.13624412]
[1755025784679,0.1726849,119470.0,119460.0,0.30366417]
[1755025785655,0.1726849,119470.0,119460.0,0.86823041]
[1755025786795,0.1726849,119470.0,119460.0,0.87028041]
[1755025788229,0.1694649,119470.0,119460.0,0.87028041]
[1755025788430,4.886e-05,119470.0,119460.0,0.87028041]
[1755025788651,4.886e-05,119470.0,119460.0,0.87350041]
[1755025796383,4.886e-05,119470.0,119460.0,0.30893417]
[1755025796589,0.00205886,119470.0,119460.0,0.87350041]
[1755025797000,4.886e-05,119470.0,119460.0,0.87350041]
[1755025797164,4.886e-05,119470.0,119460.0,0.30893417]
[1755025797571,4.886e-05,119470.0,119460.0,0.87350041]
[1755025797814,0.00205886,119470.0,119460.0,0.87350041]
[1755025799469,4.886e-05,119470.0,119460.0,0.87350041]
[1755025800135,0.1727549,119470.0,119460.0,0.30366417]
[1755025800588,0.16742005,119460.0,119440.0,0.17580792]
[1755025800804,0.17273407,119450.0,119440.0,0.17580792]
[1755025801008,0.17273407,119450.0,119440.0,0.31192392]
[1755025801009,0.0053,119450.0,119440.0,0.31192392]
[1755025801218,0.00361479,119450.0,119440.0,0.87846016]
[1755025801654,0.00681479,119450.0,119440.0,0.87846016]
[1755025802064,0.00681479,119450.0,119440.0,0.88046016]
[1755025803263,0.00681479,119450.0,119440.0,0.87846016]
[1755025805647,0.00361479,119450.0,119440.0,0.87846016]
[1755025807233,0.0021,119450.0,119440.0,0.87846016]
[1755025807453,0.0021,119450.0,119440.0,1.4430264]
[1755025807632,4.886e-05,119470.0,119460.0,0.16742005]
[1755025807866,0.00156365,119470.0,119460.0,0.85958629]
[1755025808072,0.00214886,119470.0,119460.0,0.86155629]
[1755025809975,0.00414886,119470.0,119460.0,0.86155629]
[1755025810472,0.00714886,119470.0,119460.0,0.86155629]
[1755025811008,0.00504886,119470.0,119460.0,0.86451629]
[1755025813233,4.886e-05,119470.0,119460.0,0.86451629]
[1755025815798,4.886e-05,119470.0,119460.0,0.94723954]
[1755025816674,4.886e-05,119470.0,119460.0,0.95058954]
[1755025818583,4.886e-05,119470.0,119460.0,1.51515578]
[1755025818767,4.886e-05,119470.0,119460.0,0.95058954]
[1755025820049,4.886e-05,119470.0,119460.0,0.97560208]
[1755025820491,4.886e-05,119470.0,119460.0,1.54016832]
[1755025820704,0.0004,119480.0,119470.0,1.64653852]
[1755025820883,0.0004,119480.0,119470.0,1.86195177]
[1755025821300,0.0004,119480.0,119470.0,1.29738553]
[1755025821522,0.0004,119480.0,119470.0,1.31994953]
[1755025822357,0.0004,119480.0,119470.0,1.88451577]
[1755025823650,0.0004,119480.0,119470.0,1.88651577]
[1755025823828,0.0004,119480.0,119470.0,1.88451577]
[1755025824332,0.0004,119480.0,119470.0,1.88651577]
[1755025824752,0.0004,119480.0,119470.0,1.73651577]
[1755025824970,0.0004,119480.0,119470.0,1.88651577]
[1755025826096,0.0004,119490.0,119480.0,0.16739203]
[1755025826293,0.00044887,119490.0,119480.0,1.51095016]
[1755025826498,0.00044887,119490.0,119480.0,1.71181776]
[1755025826916,0.00044887,119490.0,119480.0,1.71541776]
[1755025829489,0.00044887,119490.0,119480.0,1.71641776]
[1755025829690,0.00044887,119490.0,119480.0,1.71541776]
[1755025832292,0.00044887,119490.0,119480.0,2.38541776]
[1755025834772,0.00044887,119490.0,119480.0,1.25628528]
[1755025834926,0.00044887,119490.0,119480.0,2.38541776]
[1755025838788,0.00044887,119490.0,119480.0,1.71541776]
[1755025841891,0.00044887,119490.0,119480.0,2.37541776]
[1755025852162,0.0004,119510.0,119500.0,1.29649649]
[1755025852361,0.0004,119510.0,119500.0,1.50860974]
[1755025852775,0.0004,119510.0,119500.0,1.51173974]
[1755025852983,0.0004,119510.0,119500.0,1.51508774]
[1755025853420,0.0004,119510.0,119500.0,1.71508774]
[1755025853624,0.0014,119510.0,119500.0,1.71508774]
[1755025853816,0.0004,119520.0,119510.0,0.36735001]
[1755025854105,0.00048182,119520.0,119510.0,2.28991274]
[1755025854821,0.00048182,119520.0,119510.0,2.29325974]
[1755025855010,0.00048182,119520.0,119510.0,2.12987274]
[1755025856143,0.00248182,119520.0,119510.0,2.12987274]
[1755025856353,0.00048182,119520.0,119510.0,2.12987274]
[1755025856564,0.00048182,119520.0,119510.0,2.00082274]
[1755025856763,0.00048182,119520.0,119510.0,2.00147274]
[1755025858000,0.00048182,119520.0,119510.0,1.88507274]
[1755025860338,0.00250182,119520.0,119510.0,1.88194274]
[1755025860539,0.00564182,119520.0,119510.0,1.3153865]
[1755025860743,0.00564182,119520.0,119510.0,0.9653865]
[1755025861356,0.00564182,119520.0,119510.0,0.9453865]
[1755025862758,0.00564182,119520.0,119510.0,0.9473865]
[1755025866023,0.00564182,119520.0,119510.0,0.9453865]
[1755025867318,0.01936381,119550.0,119530.0,0.16732201]
[1755025867524,0.02724065,119550.0,119540.0,0.29474801]
[1755025867931,0.02908065,119550.0,119540.0,0.29474801]
[1755025868609,0.19737466,119550.0,119540.0,0.29474801]
[1755025868822,0.19585987,119550.0,119540.0,0.16730801]
[1755025869026,0.21781987,119550.0,119540.0,0.29470801]
[1755025869226,0.22081987,119550.0,119540.0,0.29470801]
[1755025869429,0.22281987,119550.0,119540.0,0.29470801]
[1755025869680,0.16730801,119540.0,119530.0,0.16732201]
[1755025869901,0.1706628,119540.0,119530.0,0.29472201]
[1755025870069,0.16914801,119540.0,119530.0,0.29472201]
[1755025870727,0.00184,119540.0,119530.0,0.29472201]
[1755025870946,0.00335479,119540.0,119530.0,0.29472201]
[1755025871999,0.00435479,119540.0,119530.0,0.29472201]
[1755025872136,0.00735479,119540.0,119530.0,0.29472201]
[1755025873367,0.1746628,119540.0,119530.0,0.29472201]
[1755025873571,0.25563244,119540.0,119530.0,0.29472201]
[1755025874578,0.27308146,119540.0,119530.0,0.29472201]
[1755025882155,0.24808146,119540.0,119530.0,0.29472201]
[1755025882536,0.24808146,119540.0,119530.0,0.29468201]
[1755025882737,0.33080471,119540.0,119530.0,0.29468201]
[1755025883044,0.33080471,119540.0,119530.0,0.29472201]
[1755025884661,0.18477103,119530.0,119520.0,0.16732346]
[1755025884886,0.18477103,119530.0,119520.0,0.29468346]
[1755025884887,0.01744902,119530.0,119520.0,0.29468346]
[1755025885106,0.01896381,119530.0,119520.0,0.29468346]
[1755025885233,0.01896381,119530.0,119520.0,0.8623897]
[1755025885447,0.01896381,119530.0,119520.0,0.8643897]
[1755025886230,0.01896381,119530.0,119520.0,0.8663897]
[1755025887414,0.01896381,119530.0,119520.0,0.7390297]
[1755025887596,0.01896381,119530.0,119520.0,0.8664297]
[1755025889098,0.21126933,119530.0,119520.0,0.8664297]
[1755025889255,0.20975454,119530.0,119520.0,0.8664297]
[1755025889456,0.04243253,119530.0,119520.0,0.8664297]
[1755025889677,0.04394732,119530.0,119520.0,0.8664297]
[1755025889893,0.01896381,119530.0,119520.0,0.8664297]
[1755025892467,0.01896381,119530.0,119520.0,0.8663897]
[1755025892871,0.01896381,119530.0,119520.0,1.43095594]
[1755025893295,0.01744902,119530.0,119520.0,1.43095594]
[1755025893606,0.01744902,119530.0,119520.0,0.8663897]
[1755025893992,0.08423804,119540.0,119530.0,0.16732201]
[1755025894192,0.26899507,119540.0,119530.0,0.86123825]
[1755025894404,0.26748028,119540.0,119530.0,0.86446825]
[1755025894605,0.10017227,119540.0,119530.0,0.86446825]
[1755025894798,0.10168706,119540.0,119530.0,0.86446825]
[1755025895004,0.26899507,119540.0,119530.0,0.86446825]
[1755025895364,0.31450514,119540.0,119530.0,0.86446825]
[1755025895569,0.31550514,119540.0,119530.0,0.86446825]
[1755025895978,0.31550514,119540.0,119530.0,0.73511825]
[1755025896198,0.31550514,119540.0,119530.0,0.12736]
[1755025896440,0.18477103,119530.0,119520.0,0.7351197]
[1755025896648,0.18477103,119530.0,119520.0,0.8624797]
[1755025896867,0.18477103,119530.0,119520.0,0.8644697]
[1755025897282,0.18477103,119530.0,119520.0,0.8592497]
[1755025897495,0.18477103,119530.0,119520.0,0.8644697]
[1755025898293,0.01468902,119530.0,119520.0,0.8644697]
[1755025898592,0.01620381,119530.0,119520.0,0.8644697]
[1755025900037,0.18352582,119530.0,119520.0,0.8644697]
[1755025900242,0.18201103,119530.0,119520.0,0.8644697]
[1755025902617,0.18284103,119530.0,119520.0,0.8644697]
[1755025903507,0.18284103,119530.0,119520.0,0.69714624]
[1755025905252,0.18284103,119530.0,119520.0,0.86448225]
[1755025905460,0.18201103,119530.0,119520.0,0.29991601]
[1755025905666,0.18201103,119530.0,119520.0,0.69714624]
[1755025906070,0.18201103,119530.0,119520.0,0.86448225]
[1755025908017,0.22521526,119530.0,119520.0,0.86448225]
[1755025909509,0.22521526,119530.0,119520.0,0.13258]
[1755025909717,0.22521526,119530.0,119520.0,0.69714624]
[1755025909928,0.22521526,119530.0,119520.0,0.86448225]
[1755025910326,0.22521526,119530.0,119520.0,0.69714624]
[1755025910529,0.22521526,119530.0,119520.0,0.86448225]
[1755025912546,0.18201103,119530.0,119520.0,0.86448225]
[1755025917293,0.01468902,119530.0,119520.0,0.86448225]
[1755025917507,0.08272325,119540.0,119530.0,0.16732201]
[1755025917727,0.01744902,119540.0,119530.0,0.86123825]
[1755025917949,0.01744902,119540.0,119530.0,0.86446825]
[1755025919564,0.18627182,119540.0,119530.0,0.86446825]
[1755025919771,0.16732201,119530.0,119520.0,0.17570281]
[1755025919947,0.1688368,119530.0,119520.0,0.29772601]
[1755025920171,0.1688368,119530.0,119520.0,0.86440225]
[1755025921039,0.00151479,119530.0,119520.0,0.86440225]
[1755025921239,0.1688368,119530.0,119520.0,0.86440225]
[1755025922441,0.00151479,119530.0,119520.0,0.86440225]
[1755025922650,0.1688368,119530.0,119520.0,0.86440225]
[1755025924326,0.00151479,119530.0,119520.0,0.86440225]
[1755025924658,0.1688368,119530.0,119520.0,0.86440225]
[1755025925705,0.18628582,119530.0,119520.0,0.69706624]
[1755025925911,0.18560103,119530.0,119520.0,0.13039]
[1755025926344,0.22916426,119530.0,119520.0,0.13039]
[1755025926822,0.18478503,119520.0,119510.0,0.00303]
[1755025927062,0.18478503,119520.0,119490.0,0.80791096]
[1755025927063,0.16736401,119500.0,119490.0,0.0676104]
[1755025927291,0.16737802,119490.0,119480.0,0.00303]
[1755025927512,0.16737802,119490.0,119470.0,0.0676104]
[1755025927513,0.16739203,119480.0,119470.0,0.0706404]
[1755025927764,0.16890682,119480.0,119470.0,0.2001104]
[1755025927987,0.16739203,119480.0,119470.0,0.2001104]
[1755025928203,0.16890682,119480.0,119470.0,0.0727504]
[1755025928425,0.16890682,119480.0,119470.0,0.20019222]
[1755025929296,0.16890682,119480.0,119470.0,0.13258182]
[1755025929520,0.16973682,119480.0,119470.0,0.13258182]
[1755025929739,0.30353757,119480.0,119470.0,0.12744182]
[1755025929951,0.30402278,119480.0,119470.0,0.12744182]
[1755025930155,0.30319278,119480.0,119470.0,0.13258182]
[1755025933403,0.30402278,119480.0,119470.0,0.13258182]
[1755025934195,0.30319278,119480.0,119470.0,0.8645541]
[1755025934832,0.30319278,119480.0,119470.0,0.29998786]
[1755025935043,0.30319278,119480.0,119470.0,0.8645541]
[1755025935524,0.30319278,119480.0,119470.0,0.29998786]
[1755025935738,0.30319278,119480.0,119470.0,0.8645541]
[1755025938494,0.2695643,119480.0,119470.0,0.8645541]
[1755025939748,0.002,119480.0,119470.0,0.8645541]
[1755025940171,0.002,119480.0,119470.0,1.42912034]
[1755025940362,0.002,119480.0,119470.0,0.8645541]
[1755025940816,0.001,119480.0,119470.0,0.8645541]
[1755025941016,0.001,119480.0,119470.0,0.29998786]
[1755025941227,0.001,119480.0,119470.0,0.8645541]
[1755025941660,0.16737868,119490.0,119480.0,0.16739203]
[1755025941864,0.20403465,119490.0,119470.0,0.8624441]
[1755025942069,0.16890682,119480.0,119470.0,0.8624441]
[1755025942231,0.16739203,119480.0,119470.0,0.8645541]
[1755025942661,0.16739203,119480.0,119470.0,0.7371941]
[1755025942865,0.16739203,119480.0,119470.0,0.8647541]
[1755025943575,0.16890682,119480.0,119470.0,0.8647541]
[1755025943780,0.16990682,119480.0,119470.0,0.8647541]
[1755025943982,0.16839203,119480.0,119470.0,0.8647541]
[1755025944448,0.16839203,119480.0,119470.0,0.30018786]
[1755025944644,0.16839203,119480.0,119470.0,0.8647541]
[1755025944853,0.16939203,119480.0,119470.0,0.8647541]